[Event "20th Rochefort Chess Festival - Masters"]
[Site "Rochefort, France"]
[Date "2022.02.15"]
[Round "5.1"]
[White "Bauer, Christian"]
[Black "Suarez Uriel, Adrian"]
[Result "1-0"]
[TimeControl "1h30 + [30'']"]
[WhiteElo "2613"]
[BlackElo "2348"]

1. d4 {[%clk 01:30:57]} {[%emt 00:00:01]} Nf6 {[%clk 01:29:22]} {[%emt
00:01:32]} 2. Nf3 {[%clk 01:29:56]} {[%emt 00:01:36]} g6 {[%clk 01:29:47]}
{[%emt 00:00:05]} 3. c4 {[%clk 01:29:42]} {[%emt 00:00:44]} Bg7 {[%clk
01:30:09]} {[%emt 00:00:08]} 4. e3 {[%clk 01:30:06]} {[%emt 00:00:06]} O-O
{[%clk 01:29:52]} {[%emt 00:00:47]} 5. Be2 {[%clk 01:30:29]} {[%emt 00:00:07]}
c5 {[%clk 01:30:03]} {[%emt 00:00:19]} 6. d5 {[%clk 01:30:53]} {[%emt
00:00:07]} d6 {[%clk 01:30:07]} {[%emt 00:00:26]} 7. Nc3 {[%clk 01:31:18]}
{[%emt 00:00:04]} e6 {[%clk 01:30:34]} {[%emt 00:00:03]} 8. O-O {[%clk
01:31:37]} {[%emt 00:00:11]} exd5 {[%clk 01:31:00]} {[%emt 00:00:05]} 9. cxd5
{[%clk 01:31:59]} {[%emt 00:00:07]} Na6 {[%clk 01:30:13]} {[%emt 00:01:17]} 10.
Nd2 {[%clk 01:30:29]} {[%emt 00:02:00]} Nc7 {[%clk 01:29:31]} {[%emt 00:01:12]}
11. e4 {[%clk 01:29:42]} {[%emt 00:01:17]} Re8 {[%clk 01:29:41]} {[%emt
00:00:21]} 12. a4 {[%clk 01:18:38]} {[%emt 00:11:33]} Rb8 {[%clk 01:20:30]}
{[%emt 00:09:41]} 13. f3 {[%clk 01:11:57]} {[%emt 00:07:10]} a6 {[%clk
01:16:01]} {[%emt 00:05:00]} 14. a5 {[%clk 01:06:06]} {[%emt 00:06:21]} Bd7
{[%clk 01:15:26]} {[%emt 00:01:05]} 15. Nc4 {[%clk 01:04:13]} {[%emt 00:02:22]}
Bb5 {[%clk 01:15:35]} {[%emt 00:00:21]} 16. Bg5 {[%clk 01:01:33]} {[%emt
00:03:09]} h6 {[%clk 01:02:45]} {[%emt 00:13:21]} 17. Bh4 {[%clk 00:49:25]}
{[%emt 00:12:38]} g5 {[%clk 01:02:18]} {[%emt 00:00:57]} 18. Bf2 {[%clk
00:48:58]} {[%emt 00:00:56]} Qe7 {[%clk 00:50:47]} {[%emt 00:12:02]} 19. Ne3
{[%clk 00:42:35]} {[%emt 00:06:54]} Bd7 {[%clk 00:50:19]} {[%emt 00:00:58]} 20.
Na4 {[%clk 00:38:56]} {[%emt 00:04:10]} Nh5 {[%clk 00:43:14]} {[%emt 00:07:34]}
21. Re1 {[%clk 00:29:58]} {[%emt 00:09:27]} Bd4 {[%clk 00:37:27]} {[%emt
00:06:17]} 22. Bf1 {[%clk 00:29:04]} {[%emt 00:01:23]} Nf4 {[%clk 00:25:43]}
{[%emt 00:12:14]} 23. Qd2 {[%clk 00:24:15]} {[%emt 00:05:19]} Rbd8 {[%clk
00:23:10]} {[%emt 00:03:03]} 24. Nb6 {[%clk 00:24:14]} {[%emt 00:00:31]} Qf6
{[%clk 00:23:29]} {[%emt 00:00:11]} 25. Nxd7 {[%clk 00:20:16]} {[%emt
00:04:29]} Rxd7 {[%clk 00:23:54]} {[%emt 00:00:04]} 26. Ng4 {[%clk 00:20:04]}
{[%emt 00:00:41]} Bxf2+ {[%clk 00:23:52]} {[%emt 00:00:33]} 27. Kxf2 {[%clk
00:19:36]} {[%emt 00:00:56]} Qg7 {[%clk 00:24:12]} {[%emt 00:00:12]} 28. Qc3
{[%clk 00:18:36]} {[%emt 00:01:30]} Nh5 {[%clk 00:20:54]} {[%emt 00:03:48]} 29.
Qxg7+ {[%clk 00:16:14]} {[%emt 00:02:52]} Kxg7 {[%clk 00:20:52]} {[%emt
00:00:32]} 30. Ne3 {[%clk 00:16:13]} {[%emt 00:00:30]} Nb5 {[%clk 00:14:29]}
{[%emt 00:06:53]} 31. g3 {[%clk 00:07:31]} {[%emt 00:09:12]} Nd4 {[%clk
00:12:14]} {[%emt 00:02:46]} 32. Bh3 {[%clk 00:07:56]} {[%emt 00:00:04]} Rc7
{[%clk 00:11:59]} {[%emt 00:00:45]} 33. Red1 {[%clk 00:07:57]} {[%emt
00:00:29]} Rb8 {[%clk 00:07:03]} {[%emt 00:05:27]} 34. Rac1 {[%clk 00:06:58]}
{[%emt 00:01:28]} Nb3 {[%clk 00:06:18]} {[%emt 00:01:14]} 35. Rc3 {[%clk
00:07:16]} {[%emt 00:00:12]} Nxa5 {[%clk 00:05:40]} {[%emt 00:01:09]} 36. b4
{[%clk 00:07:09]} {[%emt 00:00:37]} b5 {[%clk 00:06:02]} {[%emt 00:00:08]} 37.
bxa5 {[%clk 00:06:38]} {[%emt 00:01:01]} Kf6 {[%clk 00:06:14]} {[%emt
00:00:18]} 38. Bg4 {[%clk 00:03:40]} {[%emt 00:03:28]} Ng7 {[%clk 00:06:32]}
{[%emt 00:00:12]} 39. f4 {[%clk 00:04:07]} {[%emt 00:00:03]} h5 {[%clk
00:05:59]} {[%emt 00:01:04]} 40. e5+ {[%clk 00:03:57]} {[%emt 00:00:40]} Ke7
{[%clk 00:06:28]} 41. Bf3 {[%clk 00:02:03]} {[%emt 00:02:24]} g4 {[%clk
00:06:57]} {[%emt 00:00:01]} 42. Be4 {[%clk 00:02:19]} {[%emt 00:00:14]} f6
{[%clk 00:06:33]} {[%emt 00:00:54]} 43. Rc2 {[%clk 00:01:44]} {[%emt 00:01:06]}
Rf8 {[%clk 00:06:42]} {[%emt 00:00:21]} 44. Kg2 {[%clk 00:01:36]} {[%emt
00:00:37]} Kd7 {[%clk 00:07:06]} {[%emt 00:00:07]} 45. e6+ {[%clk 00:00:52]}
{[%emt 00:01:14]} Ke7 {[%clk 00:07:34]} {[%emt 00:00:01]} 46. f5 {[%clk
00:01:12]} {[%emt 00:00:10]} Rb8 {[%clk 00:07:36]} {[%emt 00:00:28]} 47. Rh1
{[%clk 00:01:37]} {[%emt 00:00:05]} c4 {[%clk 00:07:52]} {[%emt 00:00:14]} 48.
Rb1 {[%clk 00:01:40]} {[%emt 00:00:27]} Rc5 {[%clk 00:07:09]} {[%emt 00:01:13]}
49. Rxc4 {[%clk 00:01:27]} {[%emt 00:00:43]} Rxc4 {[%clk 00:07:25]} {[%emt
00:00:15]} 50. Nxc4 {[%clk 00:01:55]} {[%emt 00:00:01]} Rc8 {[%clk 00:07:52]}
{[%emt 00:00:03]} 51. Nb6 {[%clk 00:01:16]} {[%emt 00:01:10]} Rc3 {[%clk
00:08:14]} {[%emt 00:00:08]} 52. Kf2 {[%clk 00:01:04]} {[%emt 00:00:42]} Ne8
{[%clk 00:08:44]} {[%emt 00:00:01]} 53. Rb2 {[%clk 00:00:44]} {[%emt 00:00:50]}
Ra3 {[%clk 00:08:57]} {[%emt 00:00:17]} 54. Rc2 {[%clk 00:01:01]} {[%emt
00:00:13]} Rxa5 {[%clk 00:09:25]} {[%emt 00:00:01]} 55. Nc8+ {[%clk 00:00:55]}
{[%emt 00:00:37]} Kd8 {[%clk 00:09:52]} {[%emt 00:00:04]} 56. Rc6 {[%emt
00:00:36]} 1-0

[Event "20th Rochefort Chess Festival - Masters"]
[Site "Rochefort, France"]
[Date "2022.02.15"]
[Round "5.2"]
[White "Pein, Jonathan"]
[Black "Galperin, Platon"]
[Result "0-1"]
[TimeControl "1h30 + [30'']"]
[WhiteElo "2223"]
[BlackElo "2522"]

1. e4 {[%clk 01:30:58]} {[%emt 00:08:58]} g6 {[%clk 01:16:57]} {[%emt
00:14:03]} 2. d4 {[%clk 01:29:24]} {[%emt 00:02:04]} d6 {[%clk 01:17:23]}
{[%emt 00:00:04]} 3. g3 {[%clk 01:23:58]} {[%emt 00:05:56]} Bg7 {[%clk
01:17:08]} {[%emt 00:00:44]} 4. Bg2 {[%clk 01:24:24]} {[%emt 00:00:05]} Nf6
{[%clk 01:16:26]} {[%emt 00:01:12]} 5. Ne2 {[%clk 01:24:47]} {[%emt 00:00:06]}
Nc6 {[%clk 01:14:05]} {[%emt 00:02:51]} 6. O-O {[%clk 01:24:46]} {[%emt
00:00:31]} O-O {[%clk 01:11:19]} {[%emt 00:03:16]} 7. Nbc3 {[%clk 01:25:12]}
{[%emt 00:00:05]} e5 {[%clk 01:11:36]} {[%emt 00:00:14]} 8. h3 {[%clk
01:24:25]} {[%emt 00:01:16]} exd4 {[%clk 01:10:39]} {[%emt 00:01:27]} 9. Nxd4
{[%clk 01:24:41]} {[%emt 00:00:14]} Re8 {[%clk 01:08:49]} {[%emt 00:02:20]} 10.
Nde2 {[%clk 01:24:59]} {[%emt 00:00:12]} Rb8 {[%clk 01:08:59]} {[%emt
00:00:21]} 11. Be3 {[%clk 01:20:16]} {[%emt 00:05:12]} b5 {[%clk 01:07:50]}
{[%emt 00:01:39]} 12. e5 {[%clk 01:17:39]} {[%emt 00:03:07]} Nxe5 {[%clk
01:02:32]} {[%emt 00:05:49]} 13. Bxa7 {[%clk 01:17:43]} {[%emt 00:00:26]} Rb7
{[%clk 01:02:49]} {[%emt 00:00:13]} 14. Bd4 {[%clk 01:10:27]} {[%emt 00:07:46]}
b4 {[%clk 01:02:38]} {[%emt 00:00:41]} 15. Nd5 {[%clk 01:06:20]} {[%emt
00:04:36]} Nxd5 {[%clk 00:56:09]} {[%emt 00:06:59]} 16. Bxd5 {[%clk 01:06:10]}
{[%emt 00:00:40]} c5 {[%clk 00:54:36]} {[%emt 00:02:03]} 17. Be3 {[%clk
01:03:09]} {[%emt 00:03:32]} Rc7 {[%clk 00:52:15]} {[%emt 00:02:51]} 18. Kh2
{[%clk 00:59:08]} {[%emt 00:04:30]} Qd7 {[%clk 00:51:32]} {[%emt 00:01:14]} 19.
Ng1 {[%clk 00:57:16]} {[%emt 00:02:22]} Ba6 {[%clk 00:51:14]} {[%emt 00:00:49]}
20. Re1 {[%clk 00:55:54]} {[%emt 00:01:51]} Nc4 {[%clk 00:51:36]} {[%emt
00:00:07]} 21. Bf4 {[%clk 00:48:46]} {[%emt 00:07:39]} Rxe1 {[%clk 00:40:34]}
{[%emt 00:11:33]} 22. Qxe1 {[%clk 00:49:14]} {[%emt 00:00:01]} Nxb2 {[%clk
00:40:55]} {[%emt 00:00:09]} 23. Qe4 {[%clk 00:46:04]} {[%emt 00:03:40]} Nd3
{[%clk 00:39:57]} {[%emt 00:01:28]} 24. Rb1 {[%clk 00:42:44]} {[%emt 00:03:50]}
Nxf4 {[%clk 00:39:00]} {[%emt 00:01:28]} 25. Qxf4 {[%clk 00:42:48]} {[%emt
00:00:25]} Be5 {[%clk 00:39:03]} {[%emt 00:00:27]} 26. Qf3 {[%clk 00:42:16]}
{[%emt 00:01:02]} Kg7 {[%clk 00:38:51]} {[%emt 00:00:43]} 27. a3 {[%clk
00:41:30]} {[%emt 00:01:17]} Qa4 {[%clk 00:30:20]} {[%emt 00:09:00]} 28. axb4
{[%clk 00:41:19]} {[%emt 00:00:42]} cxb4 {[%clk 00:30:45]} {[%emt 00:00:05]} 29.
Bb3 {[%clk 00:39:39]} {[%emt 00:02:10]} Qb5 {[%clk 00:30:52]} {[%emt 00:00:22]}
30. Rd1 {[%clk 00:39:13]} {[%emt 00:00:56]} Bb7 {[%clk 00:29:27]} {[%emt
00:01:54]} 31. Qe2 {[%clk 00:38:55]} {[%emt 00:00:48]} Qc5 {[%clk 00:27:14]}
{[%emt 00:02:44]} 32. Nf3 {[%clk 00:37:40]} {[%emt 00:01:45]} Re7 {[%clk
00:23:20]} {[%emt 00:04:25]} 33. Nxe5 {[%clk 00:36:09]} {[%emt 00:02:00]} Rxe5
{[%clk 00:23:45]} {[%emt 00:00:05]} 34. Qd2 {[%clk 00:36:07]} {[%emt 00:00:32]}
Qc6 {[%clk 00:24:01]} {[%emt 00:00:14]} 35. f4 {[%clk 00:34:19]} {[%emt
00:02:19]} Re3 {[%clk 00:24:05]} {[%emt 00:00:25]} 36. Qf2 {[%clk 00:28:05]}
{[%emt 00:06:44]} Qe4 {[%clk 00:23:52]} {[%emt 00:00:43]} 37. Bc4 {[%clk
00:28:08]} {[%emt 00:00:28]} Rf3 {[%clk 00:23:35]} {[%emt 00:00:47]} 38. Qd4+
{[%clk 00:27:28]} {[%emt 00:01:10]} Qxd4 {[%clk 00:24:01]} {[%emt 00:00:05]} 39.
Rxd4 {[%clk 00:27:56]} {[%emt 00:00:02]} Rf2+ {[%clk 00:24:24]} {[%emt
00:00:07]} 40. Kg1 {[%clk 00:28:22]} {[%emt 00:00:04]} Rxc2 {[%clk 00:24:27]}
{[%emt 00:00:26]} 41. Bb3 {[%clk 00:27:05]} {[%emt 00:01:48]} Rb2 {[%clk
00:24:25]} {[%emt 00:00:33]} 42. Bc4 {[%clk 00:26:03]} {[%emt 00:01:32]} Rg2+
{[%clk 00:23:40]} {[%emt 00:01:14]} 43. Kf1 {[%clk 00:26:25]} {[%emt 00:00:08]}
Rxg3 {[%clk 00:24:06]} {[%emt 00:00:05]} 44. Rxd6 {[%clk 00:25:53]} {[%emt
00:01:02]} Rxh3 {[%clk 00:23:40]} {[%emt 00:00:56]} 45. Bxf7 {[%clk 00:25:43]}
{[%emt 00:00:40]} Kxf7 {[%clk 00:23:43]} {[%emt 00:00:26]} 46. Rd7+ {[%clk
00:26:11]} {[%emt 00:00:02]} Kg8 {[%clk 00:23:59]} {[%emt 00:00:14]} 47. Rxb7
{[%clk 00:26:37]} {[%emt 00:00:05]} Rf3+ {[%clk 00:24:25]} {[%emt 00:00:03]}
0-1


[ePGN "0.1;DGT LiveChess/2.2.5"]

[Event "20th Rochefort Chess Festival - Masters"]
[Site "Rochefort, France"]
[Date "2022.02.15"]
[Round "6.5"]
[White "Lucas, Arthur"]
[Black "Duboue, Peio"]
[Result "0-1"]
[TimeControl "1h30 + [30'']"]
[WhiteElo "2337"]
[BlackElo "2412"]

1. e4 {[%clk 01:29:55]} {[%emt 00:01:04]} c6 {[%clk 01:30:54]} {[%emt
00:00:07]} 2. Nc3 {[%clk 01:29:07]} {[%emt 00:01:18]} d5 {[%clk 01:31:19]}
{[%emt 00:00:04]} 3. Nf3 {[%clk 01:29:33]} {[%emt 00:00:04]} Bg4 {[%clk
01:31:44]} {[%emt 00:00:04]} 4. h3 {[%clk 01:30:00]} {[%emt 00:00:04]} Bxf3
{[%clk 01:32:10]} {[%emt 00:00:04]} 5. Qxf3 {[%clk 01:30:25]} {[%emt 00:00:05]}
e6 {[%clk 01:32:37]} {[%emt 00:00:03]} 6. Be2 {[%clk 01:30:49]} {[%emt
00:00:06]} Bc5 {[%clk 01:31:55]} {[%emt 00:01:12]} 7. O-O {[%clk 01:30:04]}
{[%emt 00:01:15]} Ne7 {[%clk 01:30:31]} {[%emt 00:01:54]} 8. Rd1 {[%clk
01:26:11]} {[%emt 00:04:23]} d4 {[%clk 01:29:58]} {[%emt 00:01:03]} 9. Nb1
{[%clk 01:25:16]} {[%emt 00:01:23]} Nd7 {[%clk 01:25:06]} {[%emt 00:05:24]} 10.
d3 {[%clk 01:25:18]} {[%emt 00:00:29]} Ng6 {[%clk 01:24:33]} {[%emt 00:01:03]}
11. Qg3 {[%clk 01:21:17]} {[%emt 00:04:31]} h5 {[%clk 01:09:52]} {[%emt
00:15:11]} 12. f4 {[%clk 01:19:13]} {[%emt 00:02:35]} h4 {[%clk 01:08:31]}
{[%emt 00:01:51]} 13. Qf2 {[%clk 01:18:42]} {[%emt 00:01:00]} Qc7 {[%clk
01:03:51]} {[%emt 00:05:10]} 14. Rf1 {[%clk 01:16:18]} {[%emt 00:02:54]} O-O-O
{[%clk 00:57:51]} {[%emt 00:06:30]} 15. Nd2 {[%clk 01:13:00]} {[%emt 00:03:49]}
e5 {[%clk 00:49:42]} {[%emt 00:08:39]} 16. Nb3 {[%clk 01:09:39]} {[%emt
00:03:51]} exf4 {[%clk 00:43:01]} {[%emt 00:07:11]} 17. Bg4 {[%clk 00:55:39]}
{[%emt 00:14:29]} Bd6 {[%clk 00:40:58]} {[%emt 00:02:33]} 18. Qxd4 {[%clk
00:52:40]} {[%emt 00:03:28]} Kb8 {[%clk 00:39:51]} {[%emt 00:01:38]} 19. Bxd7
{[%clk 00:50:27]} {[%emt 00:02:43]} Rxd7 {[%clk 00:37:04]} {[%emt 00:03:17]} 20.
Qf2 {[%clk 00:46:20]} {[%emt 00:04:36]} c5 {[%clk 00:36:52]} {[%emt 00:00:42]}
21. Nd2 {[%clk 00:43:54]} {[%emt 00:02:56]} Ne5 {[%clk 00:35:47]} {[%emt
00:01:35]} 22. Nf3 {[%clk 00:36:47]} {[%emt 00:07:37]} Nxf3+ {[%clk 00:35:44]}
{[%emt 00:00:33]} 23. Qxf3 {[%clk 00:37:15]} {[%emt 00:00:02]} g5 {[%clk
00:36:06]} {[%emt 00:00:07]} 24. b3 {[%clk 00:36:51]} {[%emt 00:00:55]} Be5
{[%clk 00:36:12]} {[%emt 00:00:25]} 25. Rb1 {[%clk 00:37:13]} {[%emt 00:00:08]}
Re7 {[%clk 00:27:55]} {[%emt 00:08:46]} 26. Kh1 {[%clk 00:34:28]} {[%emt
00:03:15]} Qd7 {[%clk 00:28:00]} {[%emt 00:00:25]} 27. Bd2 {[%clk 00:29:47]}
{[%emt 00:05:11]} Rg8 {[%clk 00:22:47]} {[%emt 00:05:43]} 28. Qg4 {[%clk
00:29:30]} {[%emt 00:00:47]} Qxg4 {[%clk 00:23:12]} {[%emt 00:00:05]} 29. hxg4
{[%clk 00:29:56]} {[%emt 00:00:03]} Kc7 {[%clk 00:22:04]} {[%emt 00:01:39]} 30.
Rf3 {[%clk 00:24:53]} {[%emt 00:05:33]} b5 {[%clk 00:21:18]} {[%emt 00:01:15]}
31. a4 {[%clk 00:19:17]} {[%emt 00:06:06]} a6 {[%clk 00:21:23]} {[%emt
00:00:25]} 32. Kg1 {[%clk 00:17:38]} {[%emt 00:02:08]} Rb8 {[%clk 00:20:41]}
{[%emt 00:01:13]} 33. Rff1 {[%clk 00:06:00]} {[%emt 00:12:09]} Bd4+ {[%clk
00:20:02]} {[%emt 00:01:08]} 34. Kh2 {[%clk 00:06:28]} {[%emt 00:00:01]} Kc6
{[%clk 00:19:59]} {[%emt 00:00:34]} 35. axb5+ {[%clk 00:01:46]} {[%emt
00:05:13]} axb5 {[%clk 00:20:28]} {[%emt 00:00:01]} 36. c3 {[%clk 00:00:40]}
{[%emt 00:01:35]} Be5 {[%clk 00:20:11]} {[%emt 00:00:46]} 37. b4 {[%clk
00:00:32]} {[%emt 00:00:39]} Rd7 {[%clk 00:20:39]} 38. Rf3 {[%clk 00:00:34]}
{[%emt 00:00:28]} Rbd8 {[%clk 00:21:08]} 39. bxc5 {[%clk 00:00:31]} {[%emt
00:00:33]} Rxd3 {[%clk 00:21:32]} {[%emt 00:00:07]} 40. Be1 {[%clk 00:00:33]}
{[%emt 00:00:28]} Rd1 {[%clk 00:20:39]} {[%emt 00:01:23]} 41. Rxd1 {[%clk
00:00:53]} {[%emt 00:00:10]} Rxd1 {[%clk 00:21:07]} {[%emt 00:00:02]} 42. Bf2
{[%clk 00:01:04]} {[%emt 00:00:18]} Rf1 {[%clk 00:20:10]} {[%emt 00:01:26]} 43.
Bd4 {[%clk 00:00:32]} {[%emt 00:01:02]} Rxf3 {[%clk 00:20:30]} {[%emt
00:00:10]} 44. Bxe5 {[%clk 00:00:52]} {[%emt 00:00:11]} Rg3 {[%clk 00:20:52]}
{[%emt 00:00:07]} 45. Bd4 {[%clk 00:00:52]} {[%emt 00:00:30]} Rxg4 {[%clk
00:20:45]} {[%emt 00:00:37]} 46. Bf2 {[%clk 00:01:04]} {[%emt 00:00:18]} Rg3
{[%clk 00:19:51]} {[%emt 00:01:24]} 0-1

[Event "20th Rochefort Chess Festival - Masters"]
[Site "Rochefort, France"]
[Date "2022.02.15"]
[Round "6.4"]
[White "Savina, Anastasia"]
[Black "Mirzoev, Emil"]
[Result "0-1"]
[TimeControl "1h30 + [30'']"]
[WhiteElo "2343"]
[BlackElo "2460"]

1. d4 {[%clk 01:30:26]} {[%emt 00:00:33]} g6 {[%clk 01:17:11]} {[%emt
00:13:50]} 2. c4 {[%clk 01:30:05]} {[%emt 00:00:51]} Bg7 {[%clk 01:17:36]}
{[%emt 00:00:05]} 3. e4 {[%clk 01:30:06]} {[%emt 00:00:29]} d6 {[%clk
01:17:24]} {[%emt 00:00:41]} 4. Nc3 {[%clk 01:27:12]} {[%emt 00:03:24]} Nf6
{[%clk 01:17:23]} {[%emt 00:00:31]} 5. h3 {[%clk 01:25:20]} {[%emt 00:02:23]}
Nbd7 {[%clk 01:13:54]} {[%emt 00:03:59]} 6. g4 {[%clk 01:19:29]} {[%emt
00:06:21]} O-O {[%clk 01:01:16]} {[%emt 00:13:06]} 7. Be3 {[%clk 01:14:19]}
{[%emt 00:05:41]} c5 {[%clk 01:00:55]} {[%emt 00:00:52]} 8. d5 {[%clk
01:11:57]} {[%emt 00:02:52]} b5 {[%clk 01:00:05]} {[%emt 00:01:20]} 9. cxb5
{[%clk 01:11:05]} {[%emt 00:01:21]} a6 {[%clk 01:00:17]} {[%emt 00:00:18]} 10.
g5 {[%clk 00:52:49]} {[%emt 00:18:45]} Ne8 {[%clk 00:56:24]} {[%emt 00:04:24]}
11. a4 {[%clk 00:52:41]} {[%emt 00:00:39]} axb5 {[%clk 00:53:52]} {[%emt
00:03:01]} 12. axb5 {[%clk 00:49:56]} {[%emt 00:03:15]} Bb7 {[%clk 00:51:43]}
{[%emt 00:02:39]} 13. Nf3 {[%clk 00:39:50]} {[%emt 00:10:36]} e6 {[%clk
00:42:11]} {[%emt 00:10:02]} 14. Nd2 {[%clk 00:27:59]} {[%emt 00:12:21]} exd5
{[%clk 00:36:47]} {[%emt 00:05:55]} 15. Nxd5 {[%clk 00:25:09]} {[%emt
00:03:20]} Bxd5 {[%clk 00:33:54]} {[%emt 00:03:23]} 16. exd5 {[%clk 00:25:28]}
{[%emt 00:00:11]} Nc7 {[%clk 00:26:28]} {[%emt 00:07:57]} 17. Bg2 {[%clk
00:19:40]} {[%emt 00:06:17]} Rxa1 {[%clk 00:21:39]} {[%emt 00:05:20]} 18. Qxa1
{[%clk 00:20:01]} {[%emt 00:00:09]} Nb6 {[%clk 00:22:07]} {[%emt 00:00:02]} 19.
Ne4 {[%clk 00:12:46]} {[%emt 00:07:44]} Ncxd5 {[%clk 00:20:53]} {[%emt
00:01:44]} 20. O-O {[%clk 00:08:23]} {[%emt 00:04:52]} Nxe3 {[%clk 00:19:44]}
{[%emt 00:01:40]} 21. fxe3 {[%clk 00:08:50]} {[%emt 00:00:03]} Nc4 {[%clk
00:19:59]} {[%emt 00:00:13]} 22. Rf3 {[%clk 00:04:31]} {[%emt 00:04:50]} Qe8
{[%clk 00:19:40]} {[%emt 00:00:49]} 23. Nf6+ {[%clk 00:03:26]} {[%emt
00:01:36]} Bxf6 {[%clk 00:20:02]} {[%emt 00:00:08]} 24. gxf6 {[%clk 00:03:52]}
{[%emt 00:00:04]} Qxb5 {[%clk 00:20:16]} {[%emt 00:00:16]} 25. Qf1 {[%clk
00:02:13]} {[%emt 00:02:09]} Rb8 {[%clk 00:19:42]} {[%emt 00:01:05]} 26. Rg3
{[%clk 00:01:43]} {[%emt 00:01:00]} Ne5 {[%clk 00:12:48]} {[%emt 00:07:24]} 27.
Qf4 {[%clk 00:02:06]} {[%emt 00:00:07]} Qe8 {[%clk 00:12:50]} {[%emt 00:00:27]}
28. h4 {[%clk 00:00:38]} {[%emt 00:01:59]} Rb4 {[%clk 00:10:46]} {[%emt
00:02:34]} 29. Qg5 {[%clk 00:00:36]} {[%emt 00:00:31]} Qc8 {[%clk 00:07:57]}
{[%emt 00:03:19]} 30. h5 {[%clk 00:00:33]} {[%emt 00:00:34]} Rg4 {[%clk
00:07:18]} {[%emt 00:01:08]} 31. Rxg4 {[%clk 00:00:31]} {[%emt 00:00:32]} Qxg4
{[%clk 00:07:36]} {[%emt 00:00:12]} 32. Qh6 {[%clk 00:00:41]} {[%emt 00:00:20]}
gxh5 {[%clk 00:07:56]} {[%emt 00:00:11]} 33. Kf2 {[%clk 00:00:32]} {[%emt
00:00:39]} Nd3+ {[%clk 00:07:34]} {[%emt 00:00:52]} 0-1